bitfinex/quotes_SOLUSD_20240808
["timestamp","ask_amount","ask_price","bid_price","bid_amount"]
[1723143410524,45.5,157.32,157.27,15.148]
[1723143410723,45.0,157.31,157.27,15.148]
[1723143410939,0.5,157.3,157.27,15.148]
[1723143413019,45.0,157.31,157.27,15.148]
[1723143420762,0.5,157.3,157.27,15.148]
[1723143421750,6.8573,157.3,157.27,15.148]
[1723143421946,45.5,157.29,157.26,6.1561]
[1723143423034,0.5,157.28,157.26,6.1561]
[1723143423951,0.5,157.29,157.26,6.1561]
[1723143424181,0.5,157.29,157.23,16.4556]
[1723143424373,6.3589,157.26,157.23,16.4556]
[1723143424666,45.5,157.25,157.23,16.4556]
[1723143425030,0.5,157.25,157.23,16.4556]
[1723143425229,0.5,157.25,157.22,6.0047]
[1723143425462,0.5,157.25,157.19,16.4452]
[1723143430759,6.60573945,157.3,157.21,27.17]
[1723143430934,6.3573,157.3,157.21,27.17]
[1723143431560,6.61406766,157.33,157.23,27.17]
[1723143432146,12.97046766,157.33,157.23,27.17]
[1723143433256,6.3565,157.32,157.23,27.17]
[1723143433459,6.3565,157.32,157.19,16.4452]
[1723143433460,6.3578,157.29,157.21,27.17]
[1723143433764,45.5,157.28,157.22,20.0]
[1723143433943,0.5,157.27,157.22,20.0]
[1723143434337,6.8585,157.27,157.19,43.6152]
[1723143434543,45.5,157.26,157.19,16.4452]
[1723143435055,0.5,157.26,157.19,16.4452]
[1723143435451,45.0,157.27,157.19,16.4452]
[1723143437136,45.5,157.27,157.19,16.4452]
[1723143437349,45.5,157.26,157.19,43.6152]
[1723143437555,0.5,157.26,157.19,43.6152]
[1723143437862,45.0,157.28,157.2,20.0]
[1723143438051,45.0,157.29,157.2,20.0]
[1723143438445,6.8568,157.31,157.21,27.17]
[1723143439259,6.3564,157.32,157.23,27.17]
[1723143439848,6.8564,157.32,157.23,27.17]
[1723143440060,6.3568,157.31,157.23,27.17]
[1723143440561,45.0,157.3,157.23,27.17]
[1723143442361,51.3573,157.3,157.23,27.17]
[1723143443083,45.0,157.3,157.23,27.17]
[1723143444097,37.05804931,157.34,157.25,15.719]
[1723143444259,6.3561,157.33,157.25,42.889]
[1723143444765,0.5,157.32,157.25,42.889]
[1723143447081,0.5,157.32,157.25,15.719]
[1723143447082,6.3573,157.3,157.25,15.719]
[1723143447260,45.0,157.29,157.25,15.719]
[1723143447877,0.5,157.28,157.25,34.369]
[1723143448060,45.0,157.3,157.25,34.369]
[1723143448255,45.0,157.31,157.25,34.369]
[1723143448662,70.0068,157.31,157.25,15.719]
[1723143448858,6.8572,157.3,157.25,15.719]
[1723143449076,45.5,157.29,157.25,34.369]
[1723143449378,45.0,157.28,157.25,34.369]
[1723143449554,0.5,157.29,157.25,34.369]
[1723143449761,0.5,157.29,157.25,15.719]
[1723143451566,45.0,157.31,157.25,15.719]
[1723143451968,51.3569,157.31,157.22,27.2]
[1723143452159,0.5,157.3,157.23,20.0]
[1723143452359,51.8569,157.31,157.23,20.0]
[1723143452676,45.0,157.31,157.23,20.0]
[1723143453470,45.0,157.32,157.23,20.0]
[1723143454278,45.5,157.32,157.23,20.0]
[1723143454669,0.5,157.31,157.23,20.0]
[1723143454869,45.0,157.32,157.23,20.0]
[1723143455960,45.5,157.32,157.23,20.0]
[1723143456271,51.8565,157.32,157.23,20.0]
[1723143456774,6.3569,157.31,157.23,20.0]
[1723143456981,45.0,157.3,157.23,20.0]
[1723143459185,45.0,157.31,157.23,20.0]
[1723143459974,45.0,157.31,157.23,21.27176088]
[1723143460683,45.0,157.31,157.24,1.27176255]
[1723143461380,45.0,157.31,157.24,10.81822422]
[1723143461886,45.0,157.31,157.24,9.54646167]
[1723143462188,45.0,157.32,157.23,20.0]
[1723143462366,45.0,157.32,157.24,9.54647134]
[1723143463978,51.3565,157.32,157.24,9.54647134]
[1723143465985,51.3565,157.32,157.24,9.54431828]
[1723143466496,51.3565,157.32,157.24,9.53468252]
[1723143466879,15.8878,157.36,157.23,20.0]
[1723143466880,9.68045085,157.36,157.26,27.2]
[1723143467196,0.5,157.35,157.27,20.0]
[1723143467569,0.5,157.35,157.26,36.73468252]
[1723143467781,0.5,157.35,157.27,29.53468252]
[1723143468389,6.3557,157.34,157.27,29.53468252]
[1723143468577,45.5,157.33,157.27,29.53468252]
[1723143468777,0.5,157.32,157.27,29.53468252]
[1723143469580,0.5,157.32,157.27,29.53184924]
[1723143469874,0.5,157.32,157.27,20.0]
[1723143471673,0.5,157.32,157.28,18.64]
[1723143473175,0.5,157.31,157.26,9.5320806]
[1723143473388,45.5,157.31,157.25,49.7771806]
[1723143473584,45.5,157.31,157.26,18.64]
[1723143473791,45.0,157.3,157.27,18.64]
[1723143474099,45.0,157.32,157.27,18.64]
[1723143474594,0.5,157.32,157.27,18.64]
[1723143474809,0.5,157.34,157.3,18.14]
[1723143476384,0.5,157.35,157.3,18.14]
[1723143476580,0.5,157.35,157.29,18.64]
[1723143477499,45.5,157.35,157.29,18.64]
[1723143477702,45.0,157.35,157.3,18.64]
[1723143477901,45.0,157.36,157.3,18.64]
[1723143478219,0.5,157.35,157.3,18.64]
[1723143479211,45.0,157.36,157.28,9.52985579]
[1723143479212,45.0,157.36,157.31,34.9449]
[1723143479701,45.0,157.37,157.31,34.9449]
[1723143480688,63.64,157.37,157.31,16.3049]
[1723143480888,19.14,157.36,157.31,16.3049]
[1723143481100,45.5,157.35,157.31,16.3049]
[1723143483300,64.14,157.35,157.31,16.3049]
[1723143483596,0.5,157.34,157.28,18.64]
[1723143487801,0.5,157.34,157.29,18.64]
[1723143488792,9.94043507,157.39,157.32,18.64]
[1723143488993,18.64,157.39,157.32,18.64]
[1723143489393,24.9937,157.39,157.32,18.64]
[1723143489705,25.4937,157.39,157.3,9.52792095]
[1723143490087,18.64,157.38,157.28,74.56]
[1723143490293,0.5,157.37,157.31,18.64]
[1723143490905,45.5,157.37,157.31,18.64]
[1723143495089,45.0,157.37,157.31,18.64]
[1723143497987,45.0,157.37,157.32,18.64]
[1723143498708,45.0,157.38,157.34,18.64]
[1723143498892,15.6279,157.4,157.35,18.64]
[1723143498893,45.0,157.39,157.35,18.64]
[1723143499097,6.3549,157.36,157.29,9.5186925]
[1723143499302,45.5,157.35,157.31,18.64]
[1723143499507,45.5,157.35,157.3,18.64]
[1723143499804,45.0,157.34,157.3,18.64]
[1723143499990,0.5,157.33,157.3,18.64]
[1723143500311,0.5,157.35,157.3,18.64]
[1723143502302,0.5,157.35,157.31,18.64]
[1723143503611,45.0,157.36,157.28,28.16117463]
[1723143503788,45.0,157.36,157.33,18.64]
[1723143507829,45.0,157.36,157.32,18.64]
[1723143508616,45.0,157.36,157.33,18.64]
[1723143513911,6.60957493,157.41,157.35,18.64]
[1723143514107,3.32555085,157.45,157.4,18.64]
[1723143514411,17.05891308,157.46,157.4,18.64]
[1723143514710,18.64,157.47,157.4,18.64]
[1723143515335,18.64,157.47,157.41,18.64]
[1723143516213,45.0,157.46,157.41,18.64]
[1723143516521,25.4913,157.45,157.35,9.50014022]
[1723143516712,45.0,157.44,157.38,18.64]
[1723143516897,0.5,157.43,157.39,18.64]
[1723143520815,6.3537,157.39,157.33,9.49805748]
[1723143521018,141.7983,157.44,157.29,15.004]
[1723143521019,18.64,157.35,157.29,15.004]
[1723143521317,45.5,157.34,157.29,33.644]
[1723143521900,0.5,157.34,157.29,33.644]
[1723143522095,0.5,157.34,157.3,18.64]
[1723143522903,0.5,157.34,157.29,33.644]
[1723143523501,30.5,157.34,157.29,33.644]
[1723143523705,45.0,157.33,157.29,33.644]
[1723143523936,0.5,157.32,157.26,15.88615748]
[1723143524105,0.5,157.32,157.27,18.64]
[1723143524310,0.5,157.32,157.28,20.0]
[1723143524609,0.5,157.32,157.28,38.64]
[1723143525514,30.0,157.31,157.28,38.64]
[1723143525721,45.0,157.3,157.28,38.64]
[1723143526114,45.0,157.3,157.27,18.64]
[1723143526906,45.0,157.3,157.28,18.64]
[1723143527129,45.0,157.3,157.29,18.64]
[1723143528013,0.5,157.34,157.29,18.64]
[1723143528238,0.5,157.34,157.26,15.90156811]
[1723143528239,45.5,157.35,157.3,18.64]
[1723143528946,0.5,157.35,157.3,18.64]
[1723143529272,0.5,157.35,157.29,18.64]
[1723143529728,0.5,157.35,157.26,15.90156811]
[1723143529932,0.5,157.35,157.29,18.64]
[1723143530308,45.5,157.35,157.29,18.64]
[1723143530926,64.14,157.35,157.28,18.64]
[1723143531808,18.64,157.34,157.28,18.64]
[1723143532007,45.5,157.33,157.28,18.64]
[1723143532208,0.5,157.32,157.28,18.64]
[1723143534823,0.5,157.32,157.29,18.64]
[1723143535008,0.5,157.32,157.26,9.5181139]
[1723143535009,45.0,157.33,157.3,18.64]
[1723143535634,0.5,157.35,157.31,18.64]
[1723143535834,0.5,157.35,157.3,18.64]
[1723143537032,45.5,157.35,157.3,18.64]
[1723143537538,45.5,157.35,157.29,18.64]
[1723143538141,45.5,157.35,157.3,18.64]
[1723143541940,45.5,157.35,157.27,9.52221265]
[1723143542148,64.14,157.35,157.28,38.64]
[1723143542822,45.5,157.35,157.29,18.64]
[1723143547926,64.14,157.35,157.29,18.64]
[1723143548130,45.5,157.35,157.29,18.64]
[1723143549147,64.14,157.35,157.28,18.64]
[1723143550342,45.5,157.35,157.29,18.64]
[1723143551799,45.5,157.35,157.3,18.64]
[1723143551963,22.0646,157.38,157.26,9.52035703]
[1723143551964,15.7105,157.38,157.33,18.64]
[1723143552167,15.7105,157.38,157.34,18.64]
[1723143552533,15.7105,157.38,157.33,18.64]
[1723143553342,45.0,157.37,157.33,18.64]
[1723143553965,19.14,157.36,157.28,9.52035703]
[1723143554135,64.14,157.35,157.28,18.64]
[1723143554637,64.14,157.35,157.29,18.64]
[1723143555039,0.5,157.34,157.29,18.64]
[1723143556782,45.0,157.35,157.26,9.5191452]
[1723143556968,64.14,157.35,157.27,20.0]
[1723143557147,70.4953,157.35,157.28,18.64]
[1723143557346,64.14,157.35,157.28,18.64]
[1723143557744,18.64,157.32,157.25,9.51974689]
[1723143557978,45.5,157.31,157.26,18.64]
[1723143558351,45.0,157.31,157.27,18.64]
[1723143558679,0.5,157.3,157.27,18.64]
[1723143558847,0.5,157.31,157.27,18.64]
[1723143559051,0.5,157.31,157.26,18.64]
[1723143559256,45.0,157.32,157.26,18.64]
[1723143559458,0.5,157.31,157.26,18.64]
[1723143559867,45.0,157.32,157.26,18.64]
[1723143564481,0.5,157.31,157.26,18.64]
[1723143565382,0.5,157.31,157.25,9.52672702]
[1723143565587,0.5,157.31,157.25,28.16672702]
[1723143566173,19.14,157.31,157.25,9.52672702]
[1723143566375,19.14,157.31,157.26,9.52672702]
[1723143566376,45.0,157.3,157.26,9.52672702]
[1723143566563,0.5,157.29,157.26,9.52672702]
[1723143567272,0.5,157.29,157.25,9.52672702]
[1723143567476,19.14,157.29,157.25,9.52672702]
[1723143567778,45.0,157.28,157.25,9.52672702]
[1723143567981,0.5,157.27,157.25,9.52672702]
[1723143568480,0.5,157.27,157.25,9.52834333]
[1723143568675,19.14,157.27,157.24,9.52834333]
[1723143568876,45.5,157.26,157.2,18.64]
[1723143569172,45.5,157.26,157.22,9.53304511]
[1723143569562,0.5,157.26,157.22,28.17304511]
[1723143569758,45.0,157.27,157.24,18.64]
[1723143570862,45.0,157.27,157.24,28.17304511]
[1723143571063,45.0,157.27,157.24,18.64]
[1723143577269,0.5,157.26,157.23,28.1721935]
[1723143577785,0.5,157.26,157.23,9.5321935]
[1723143578178,0.5,157.26,157.23,28.1721935]
[1723143578690,45.0,157.27,157.23,28.1721935]
[1723143578872,45.0,157.28,157.23,28.1721935]
[1723143579073,45.0,157.28,157.23,18.64]
[1723143579475,45.0,157.28,157.24,18.64]
[1723143585992,45.0,157.29,157.24,18.64]
[1723143587180,45.0,157.29,157.23,18.64]
[1723143587489,0.5,157.28,157.23,18.64]
[1723143587890,15.156,157.27,157.23,18.64]
[1723143588092,45.0,157.26,157.22,18.64]
[1723143588273,45.5,157.26,157.22,18.64]
[1723143588471,45.5,157.26,157.21,18.64]
[1723143589306,45.5,157.26,157.2,18.64]
[1723143590594,45.5,157.26,157.21,18.64]
[1723143592199,45.5,157.26,157.18,6.6502]
[1723143592499,64.14,157.26,157.2,18.64]
[1723143592796,45.5,157.26,157.2,18.64]
[1723143592992,45.0,157.26,157.2,18.64]
[1723143593372,0.5,157.25,157.2,18.64]
[1723143593899,0.5,157.25,157.21,18.64]
[1723143594489,0.5,157.25,157.16,15.1941]
[1723143594689,18.64,157.21,157.15,9.9614449]
[1723143594885,45.5,157.2,157.14,18.71734092]
[1723143595094,64.14,157.2,157.14,18.71734092]
[1723143595412,0.5,157.19,157.14,18.71734092]
[1723143596780,0.5,157.19,157.15,20.0]
[1723143597797,6.65010476,157.26,157.18,18.64]
[1723143597974,18.64,157.25,157.19,18.64]
[1723143598597,18.64,157.25,157.15,20.0]
[1723143598795,18.64,157.24,157.17,18.64]
[1723143599386,45.5,157.23,157.17,18.64]
[1723143599891,64.14,157.23,157.17,18.64]
[1723143600489,18.64,157.18,157.14,9.62981154]
[1723143600697,18.64,157.15,157.14,0.07734092]
[1723143601001,41.2904,157.15,157.14,0.07734092]
[1723143601207,86.1252,157.15,157.08,9.55247062]
[1723143601498,18.64,157.13,157.08,9.55552176]
[1723143601704,45.5,157.12,157.06,28.19552176]
[1723143602094,45.5,157.12,157.06,18.64]
[1723143602287,45.5,157.12,157.05,9.55552176]
[1723143602493,45.5,157.12,157.06,18.64]
[1723143602700,45.5,157.12,157.08,18.64]
[1723143602896,45.5,157.13,157.08,18.64]
[1723143603089,0.5,157.12,157.07,18.64]
[1723143603401,0.5,157.12,157.01,8.73002918]
[1723143603402,18.64,157.11,157.02,10.37667175]
[1723143603608,45.5,157.1,157.04,18.64]
[1723143603987,64.14,157.1,157.04,18.64]
[1723143604182,64.14,157.1,157.02,10.37667175]
[1723143604183,18.64,157.07,157.02,0.8203164]
[1723143604383,45.5,157.06,157.02,0.8203164]
[1723143604808,45.0,157.06,157.02,0.8203164]
[1723143605102,45.0,157.07,157.02,0.8203164]
[1723143605303,45.0,157.07,157.03,18.64]
[1723143605494,22.937,157.09,157.02,0.8203164]
[1723143605691,45.5,157.08,157.02,19.4603164]
[1723143605996,19.14,157.07,157.02,0.8203164]
[1723143606201,45.0,157.06,157.02,0.8203164]
[1723143606385,0.5,157.05,157.02,0.8203164]
[1723143606707,30.5,157.05,157.02,0.8203164]
[1723143606906,45.0,157.04,157.02,0.8203164]
[1723143608209,25.0042,157.13,157.03,18.64]
[1723143608502,6.3658,157.09,157.03,18.64]
[1723143608702,18.64,157.09,157.02,0.8203164]
[1723143608902,6.3657,157.09,157.02,0.8203164]
[1723143609102,13.0185306,157.09,157.02,0.8203164]
[1723143609302,6.6528306,157.09,157.04,18.64]
[1723143609607,40.1987,157.1,157.04,18.64]
[1723143609803,40.1987,157.1,157.05,18.64]
[1723143609804,21.5587,157.1,157.05,18.64]
[1723143609996,21.5587,157.1,157.02,0.8203164]
[1723143610196,40.1987,157.1,157.02,0.8203164]
[1723143610393,40.1987,157.1,157.03,18.64]
[1723143610994,40.1987,157.1,157.04,18.64]
[1723143611390,45.0,157.09,157.06,18.64]
[1723143611586,22.0688,157.14,157.08,18.64]
[1723143611786,22.0688,157.14,157.09,18.64]
[1723143612402,40.7088,157.14,157.07,18.64]
[1723143612602,18.64,157.08,157.02,0.8203164]
[1723143612809,18.64,157.09,157.02,19.4603164]
[1723143612992,18.64,157.07,157.02,0.8203164]
[1723143613191,45.0,157.06,157.02,0.8203164]
[1723143613408,45.5,157.06,157.02,0.8203164]
[1723143613591,45.0,157.06,157.02,0.8203164]
[1723143613794,63.64,157.07,157.02,0.8203164]
[1723143613994,18.64,157.05,157.02,0.8203164]
[1723143614198,45.0,157.04,157.02,0.8203164]
[1723143614400,45.0,157.04,157.02,19.4603164]
[1723143614598,45.0,157.04,157.03,18.64]
[1723143614892,16.0326,157.07,157.03,18.64]
[1723143615219,45.0,157.06,157.02,0.8203164]
[1723143615422,45.0,157.06,157.04,18.64]
[1723143615713,45.0,157.06,157.02,0.8203164]
[1723143616505,22.7158,157.11,157.04,27.27]
[1723143616924,22.7158,157.11,157.02,0.8203164]
[1723143617090,6.3657,157.09,157.02,0.8203164]
[1723143617295,22.7158,157.11,157.04,27.27]
[1723143617597,6.3662,157.08,157.02,0.8203164]
[1723143617815,45.5,157.07,157.02,0.8203164]
[1723143618201,51.8666,157.07,157.02,0.8203164]
[1723143618401,6.367,157.06,157.02,0.8203164]
[1723143618605,45.5,157.05,157.02,0.8203164]
[1723143618798,0.5,157.04,157.02,0.8203164]
[1723143619000,0.5,157.03,157.02,0.8203164]
[1723143619215,51.8682,157.03,157.02,0.8203164]
[1723143619523,51.8682,157.03,156.9,43.2866]
[1723143619524,6.3692,157.01,156.9,43.2866]
[1723143619702,45.0,157.0,156.9,43.2866]
[1723143620108,45.0,157.01,156.9,43.2866]
[1723143620614,45.5,157.01,156.9,27.27]
[1723143620816,6.3698,156.99,156.88,27.27]
[1723143621001,45.5,156.98,156.88,27.27]
[1723143621198,45.0,156.98,156.88,27.27]
[1723143621499,6.8704,156.98,156.88,27.27]
[1723143621693,45.0,156.97,156.88,27.27]
[1723143622513,6.66051547,156.97,156.88,27.27]
[1723143622692,45.0,156.96,156.88,27.27]
[1723143623231,45.0,156.96,156.89,20.0]
[1723143624332,32.3328,157.02,156.9,27.27]
[1723143624525,6.3697,157.0,156.91,20.0]
[1723143624729,6.65942905,157.01,156.91,20.0]
[1723143624895,6.65942905,157.01,156.92,27.27]
[1723143625093,6.3687,157.02,156.93,20.0]
[1723143625338,6.3691,157.01,156.93,20.0]
[1723143625501,6.3697,157.0,156.93,20.0]
[1723143625802,34.42831282,157.03,156.91,20.0]
[1723143626007,40.29691282,157.03,156.91,20.0]
[1723143626333,21.8542,157.04,156.92,28.54420201]
[1723143626626,45.0,157.03,156.93,20.0]
[1723143626861,51.65814239,157.03,156.93,20.0]
[1723143627126,6.3688,157.02,156.93,20.0]
[1723143627333,45.0,157.01,156.93,20.0]
[1723143627917,6.3695,157.0,156.93,20.0]
[1723143628107,45.0,156.99,156.93,20.0]
[1723143628430,51.65932329,157.01,156.93,20.0]
[1723143628605,6.3695,157.0,156.89,27.27]
[1723143628811,45.0,156.99,156.9,20.0]
[1723143629010,45.0,156.99,156.91,1.27435195]
[1723143629212,45.0,157.0,156.9,20.0]
[1723143630035,21.8542,157.04,156.93,27.27]
[1723143630207,21.8542,157.04,156.95,27.27]
[1723143630401,21.8542,157.04,156.96,21.27393708]
[1723143631129,21.8542,157.04,156.96,20.0]
[1723143631313,21.8542,157.04,156.95,20.0]
[1723143631819,28.222,157.04,156.95,20.0]
[1723143632001,21.8542,157.04,156.96,1.27406285]
[1723143632206,15.7436,157.04,156.94,21.27390481]
[1723143632403,22.1115,157.04,156.94,20.0]
[1723143632602,22.1115,157.04,156.95,27.27]
[1723143632818,22.1115,157.04,156.96,21.2740511]
[1723143633024,15.7436,157.04,156.96,21.2740511]
[1723143633218,15.7436,157.04,156.96,20.0]
[1723143633424,45.0,157.03,156.96,20.0]
[1723143634037,45.0,157.03,156.97,27.27]
[1723143634236,6.65734029,157.07,156.99,27.27]
[1723143634428,22.9567,157.08,157.0,1.27359631]
[1723143635342,22.9567,157.08,156.99,47.27]
[1723143635509,22.9567,157.08,157.02,27.27]
[1723143635914,22.9567,157.08,157.0,1.2735401]
[1723143636119,22.9567,157.08,157.0,27.27]
[1723143636733,22.9567,157.08,157.01,20.0]
[1723143637105,45.0,157.07,157.01,20.0]
[1723143638534,6.65709604,157.11,157.0,27.27]
[1723143638535,6.65709604,157.11,157.0,1.27358061]
[1723143638751,6.65709604,157.11,157.05,27.27]
[1723143638916,16.5905,157.15,157.07,27.27]
[1723143639118,16.5905,157.15,157.08,1.27304099]
[1723143639316,16.5905,157.15,157.07,27.27]
[1723143639917,16.5905,157.15,157.08,1.27307109]
[1723143640117,16.5905,157.15,157.07,27.27]
[1723143640733,16.5905,157.15,157.08,1.27296156]
[1723143640922,6.2279,157.17,157.09,27.27]
[1723143641126,6.2279,157.17,157.1,1.27283533]
[1723143641419,12.5906,157.17,157.09,27.27]
[1723143643444,12.5906,157.17,157.1,1.27283689]
[1723143643445,6.2279,157.17,157.1,1.27283689]
[1723143643747,45.0,157.16,157.11,28.54277336]
[1723143643919,15.0906,157.19,157.11,28.54277336]
[1723143644124,15.0906,157.19,157.13,27.27]
[1723143644336,15.0906,157.19,157.14,1.27260702]
[1723143644551,21.4524,157.19,157.13,27.27]
[1723143645046,6.3624,157.18,157.1,27.27]
[1723143645242,45.0,157.17,157.11,20.0]
[1723143645441,45.0,157.17,157.11,21.27272439]
[1723143647548,45.0,157.17,157.11,1.27272439]
[1723143647725,45.0,157.18,157.11,20.0]
[1723143648738,51.3622,157.18,157.12,1.27272246]
[1723143648938,6.3629,157.17,157.11,20.0]
[1723143649139,45.0,157.16,157.11,20.0]
[1723143649350,0.5,157.15,157.06,43.1504]
[1723143649647,6.3639,157.14,157.06,43.1504]
[1723143649874,51.3642,157.13,157.06,27.27]
[1723143650027,6.3642,157.13,157.06,27.27]
[1723143650359,45.0,157.12,157.06,27.27]
[1723143650563,45.0,157.13,157.06,27.27]
[1723143650850,21.4526,157.19,157.1,27.27]
[1723143651233,21.4526,157.19,157.11,1.27275454]
[1723143651234,28.10604635,157.19,157.11,1.27275454]
[1723143651445,21.74404635,157.19,157.12,27.27]
[1723143651641,21.74404635,157.19,157.13,1.27256767]
[1723143652349,6.3634,157.15,157.09,15.1808]
[1723143652548,0.5,157.14,157.08,6.4633]
[1723143652853,0.5,157.18,157.09,20.0]
[1723143653030,6.3629,157.17,157.09,20.0]
[1723143653231,45.0,157.16,157.09,20.0]
[1723143653930,45.0,157.16,157.1,1.27288222]
[1723143654131,45.0,157.17,157.1,1.27288222]
[1723143654456,45.0,157.18,157.1,1.27288222]
[1723143654655,45.0,157.18,157.11,1.27281504]
[1723143654829,51.3623,157.18,157.11,1.27281504]
[1723143655028,51.3623,157.18,157.09,20.0]
[1723143655254,6.3627,157.17,157.09,20.0]
[1723143655438,45.0,157.18,157.09,20.0]
[1723143655439,51.3629,157.16,157.09,20.0]
[1723143655639,6.3626,157.17,157.09,20.0]
[1723143655849,45.0,157.16,157.09,20.0]
[1723143656049,51.3629,157.16,157.09,20.0]
[1723143656435,45.0,157.16,157.09,20.0]
[1723143657361,51.3626,157.17,157.09,20.0]
[1723143657662,45.0,157.17,157.1,27.27]
[1723143657856,6.65344635,157.19,157.15,27.27]
[1723143658050,22.837,157.27,157.17,27.27]
[1723143658252,6.3601,157.23,157.15,27.27]
[1723143658562,6.3601,157.23,157.16,20.0]
[1723143658758,6.3597,157.24,157.16,21.27235092]
[1723143658964,13.01095005,157.24,157.16,21.27235092]
[1723143659148,13.01095005,157.24,157.17,1.27230338]
[1723143659458,6.65125005,157.24,157.17,1.27230338]
[1723143660143,13.01115005,157.24,157.16,20.0]
[1723143660463,6.3601,157.23,157.16,20.0]
[1723143660761,13.01095005,157.24,157.16,20.0]
[1723143660959,6.65125005,157.24,157.16,21.27230241]
[1723143661166,6.65125005,157.24,157.17,27.27]
[1723143661471,6.65125005,157.24,157.16,20.0]
[1723143661644,6.65125005,157.24,157.13,27.27]
[1723143661645,6.3613,157.21,157.13,27.27]
[1723143661850,6.362,157.19,157.11,21.3051]
[1723143662169,45.0,157.18,157.11,21.3051]
[1723143662485,51.3622,157.18,157.11,15.0067]
[1723143662776,6.3626,157.17,157.07,33.5965]
[1723143662999,72.77,157.16,157.03,27.27]
[1723143663147,6.3641,157.14,157.03,27.27]
[1723143663350,45.5,157.13,157.03,27.27]
[1723143663550,45.5,157.13,157.02,22.6359]
[1723143663766,6.3654,157.1,157.02,22.6359]
[1723143664067,45.5,157.09,157.02,22.6359]
[1723143664270,6.367,157.06,156.99,27.27]
[1723143664470,45.5,157.05,156.95,27.27]
[1723143664658,0.5,157.04,156.95,27.27]
[1723143665579,6.8681,157.04,156.93,42.5284]
[1723143665757,45.0,157.03,156.93,15.2584]
[1723143666656,45.0,157.03,156.94,20.0]
[1723143667075,45.0,157.03,156.93,16.5323975]
[1723143668158,45.0,157.03,156.94,20.0]
[1723143668355,45.0,157.03,156.95,1.27388144]
[1723143668686,45.0,157.03,156.94,21.27378553]
[1723143668892,6.3661,157.09,156.95,35.11]
[1723143669181,6.3658,157.09,156.96,21.27366997]
[1723143669402,6.65763053,157.08,156.96,21.27366997]
[1723143669585,21.7577,157.1,156.96,21.27366997]
[1723143669754,21.7577,157.1,156.98,35.11]
[1723143669958,21.7577,157.1,156.99,21.27334474]
[1723143670156,6.4781,157.1,156.99,21.27334474]
[1723143670456,6.3647,157.12,157.0,6.4919]
[1723143670657,6.3641,157.13,157.01,21.27324372]
[1723143671275,36.16257014,157.14,157.01,21.27324372]
[1723143671477,13.30587014,157.14,157.02,62.57573254]
[1723143671678,15.8791,157.19,157.02,62.57573254]